fUSD/lending_fUSD_20251031
["ID","MTS","AMOUNT","RATE_DAILY","PERIOD"]
[392788820,1761950962660,500.0,0.00030136,120]
[392788821,1761950963458,500.0,0.00030136,120]
[392788822,1761950964294,500.0,0.00030136,120]
[392788823,1761950964354,284.58280376,0.00030136,120]
[392788824,1761950964400,533.52,0.00030136,120]
[392788825,1761950964842,500.0,0.00030136,120]
[392788826,1761950965421,500.0,0.00030136,120]
[392788827,1761950966980,602.2,0.00030136,120]
[392788828,1761950968158,500.0,0.00030136,120]
[392788829,1761950969758,500.0,0.00030136,120]
[392788830,1761950969812,500.0,0.00030136,120]
[392788831,1761950970903,500.0,0.00030136,120]
[392788832,1761950972451,150.17358341,0.00030136,120]
[392788833,1761950973818,500.0,0.00030136,120]
[392788834,1761950975392,500.0,0.00030136,120]
[392788835,1761950976359,500.0,0.00030136,120]
[392788836,1761950977432,607.43,0.00030136,120]
[392788837,1761950977754,847.41,0.00030136,120]
[392788838,1761950980302,500.0,0.00030136,120]
[392788839,1761950980400,500.0,0.00030136,120]
[392788840,1761950980778,500.0,0.00030136,120]
[392788841,1761950981342,500.0,0.00030136,120]
[392788842,1761950982202,672.28,0.00030136,120]
[392788843,1761950982372,500.0,0.00030136,120]
[392788844,1761950983870,500.0,0.00030136,120]
[392788845,1761950986552,500.0,0.00030136,120]
[392788846,1761950987638,500.0,0.00030136,120]
[392788847,1761950987954,500.0,0.00030136,120]
[392788848,1761950988018,734.98,0.00030136,120]
[392788849,1761950988509,500.0,0.00030136,120]
[392788850,1761950990243,500.0,0.00030136,120]
[392788851,1761950990991,500.0,0.00030136,120]
[392788852,1761950991096,500.0,0.00030136,120]
[392788853,1761950991277,500.0,0.00030136,120]
[392788854,1761950993553,500.0,0.00030136,120]
[392788855,1761950996031,500.0,0.00030136,120]
[392788856,1761950998654,500.0,0.00030136,120]
[392788857,1761950998703,500.0,0.00030136,120]
[392788858,1761951002533,500.0,0.00030136,120]
[392788859,1761951003307,500.0,0.00030136,120]
[392788860,1761951003670,886.54,0.00030136,120]
[392788861,1761951005909,474.63105315,0.00030136,120]
[392788862,1761951007707,500.0,0.00030136,120]
[392788863,1761951008173,500.0,0.00030136,120]
[392788864,1761951009512,500.0,0.00030136,120]
[392788865,1761951011636,1063.17,0.00030136,120]
[392788866,1761951013712,500.0,0.00030136,120]
[392788867,1761951020669,500.0,0.00030136,120]
[392788868,1761951022008,500.0,0.00030136,120]
[392788869,1761951022399,500.0,0.00030136,120]
[392788870,1761951023211,529.35,0.00030136,120]
[392788871,1761951023326,1108.97,0.00030136,120]
[392788872,1761951026804,500.0,0.00030136,120]
[392788873,1761951027253,500.0,0.00030136,120]
[392788874,1761951028070,500.0,0.00030136,120]
[392788875,1761951028278,500.0,0.00030136,120]
[392788876,1761951029751,500.0,0.00030136,120]
[392788877,1761951031584,820.65,0.00030136,120]
[392788879,1761951032085,-181.32,0.00013718,2]
[392788880,1761951032095,-257.33364253,0.00013838,2]
[392788881,1761951032104,-500.0,0.00013938,2]
[392788882,1761951032114,-150.0,0.00013987,2]
[392788883,1761951032124,-578.20924308,0.00014009,2]
[392788884,1761951032134,-166.42,0.0001413,2]
[392788885,1761951032143,-258.18798456,0.00014137,2]
[392788886,1761951032154,-150.0,0.00014237,2]
[392788887,1761951032164,-150.0,0.00014237,2]
[392788888,1761951032175,-150.0,0.00014237,2]
[392788889,1761951032184,-258.18798456,0.00014469,2]
[392788890,1761951032194,-150.0,0.00014487,2]
[392788891,1761951032203,-1605.0,0.000147,2]
[392788892,1761951032213,-166.42,0.00014713,2]
[392788893,1761951032226,-79.80146693,0.00014725,2]
[392788894,1761951032237,-168.0,0.00014787,2]
[392788895,1761951032246,-239.8896659,0.00014795,2]
[392788896,1761951032261,-960.1103341,0.00014795,2]
[392788897,1761951032270,-300.0,0.00014796,2]
[392788898,1761951032280,-300.0,0.00014796,2]
[392788899,1761951032289,-1691.9853979,0.00014797,2]
[392788900,1761951032303,-1104.82449094,0.00014797,2]
[392788901,1761951032333,-1607.56784776,0.00014797,2]
[392788902,1761951032345,-776.28283243,0.00014797,2]
[392788903,1761951032356,-555.66208952,0.00014797,2]
[392788904,1761951032367,-954.93442162,0.00014797,2]
[392788905,1761951032379,-4754.8396003,0.00014797,2]
[392788907,1761951032390,-1292.51045087,0.00014797,2]
[392788914,1761951032447,-250.0,0.00014797,2]
[392788916,1761951032459,-1345.47796866,0.00014797,2]
[392788917,1761951032473,-1000.0,0.00014797,2]
[392788918,1761951032489,-258.18798456,0.000148,2]
[392788919,1761951032499,-500.0,0.00014873,2]
[392788920,1761951032509,-29.37014435,0.00014873,2]
[392788921,1761951032521,-470.62985565,0.00014873,2]
[392788923,1761951032531,-500.0,0.00014873,2]
[392788926,1761951032540,-500.0,0.00014873,2]
[392788928,1761951032550,-500.0,0.00014873,2]
[392788930,1761951032559,-169.75293217,0.0001488,2]
[392788934,1761951032584,-30.24706783,0.0001488,2]
[392788936,1761951032594,-248.71531821,0.00014882,2]
[392788939,1761951032604,-1000.0,0.0001489,2]
[392788941,1761951032613,-168.0,0.00014896,2]
[392788942,1761951032623,-150.0,0.00014899,2]
[392788944,1761951032633,-626.87260473,0.000149,2]
[392788945,1761951032644,-161.85261452,0.000149,2]
[392788946,1761951032654,-122.08009771,0.000149,2]
[392788947,1761951032714,-2322.46100229,0.000149,2]
[392788948,1761951032724,-59857.69908474,0.000149,2]
[392788949,1761951032733,-2500.0,0.000149,2]
[392788950,1761951032745,-175.99870579,0.000149,2]
[392788951,1761951032755,-196.16140196,0.000149,2]
[392788952,1761951032765,-323.17,0.00014943,2]
[392788953,1761951032773,-537.49,0.00014944,2]
[392788954,1761951032783,-500.0,0.00014973,2]
[392788955,1761951032792,-500.0,0.00014973,2]
[392788956,1761951032801,-500.0,0.00014973,2]
[392788957,1761951032810,-500.0,0.00014973,2]
[392788958,1761951032819,-500.0,0.00014973,2]
[392788959,1761951032828,-500.0,0.00014973,2]
[392788960,1761951032838,-150.0,0.00014986,2]
[392788961,1761951032848,-193.01178975,0.00014986,2]
[392788962,1761951032858,-150.0,0.00014986,2]
[392788963,1761951032867,-172.64702812,0.00014986,2]
[392788964,1761951032876,-150.0,0.00014986,2]
[392788965,1761951032886,-150.0,0.00014986,2]
[392788966,1761951032897,-150.00000001,0.00014986,2]
[392788967,1761951032907,-150.0,0.00014986,2]
[392788968,1761951032917,-288.49451484,0.00014986,2]
[392788969,1761951032927,-1309.36,0.00014991,2]
[392788970,1761951032937,-200.0,0.00014991,2]
[392788971,1761951032948,-322.6107,0.00014991,2]
[392788972,1761951032958,-500.0,0.00014991,2]
[392788973,1761951032969,-210.12151225,0.00014991,2]
[392788974,1761951032982,-500.0,0.00014991,2]
[392788975,1761951032993,-500.0,0.00014991,2]
[392788976,1761951033003,-500.0,0.00014991,2]
[392788977,1761951033289,-151.0,0.00014991,2]
[392788978,1761951033299,-500.0,0.00014991,2]
[392788979,1761951033310,-500.0,0.00014991,2]
[392788980,1761951033319,-500.0,0.00014991,2]
[392788981,1761951033328,-500.0,0.00014991,2]
[392788982,1761951033339,-500.0,0.00014991,2]
[392788983,1761951033349,-200.0,0.00014991,2]
[392788984,1761951033359,-500.0,0.00014991,2]
[392788985,1761951033370,-500.0,0.00014991,2]
[392788986,1761951033380,-500.0,0.00014991,2]
[392788987,1761951033390,-500.0,0.00014991,2]
[392788988,1761951033400,-646.65982734,0.00014991,2]
[392788989,1761951033410,-500.0,0.00014991,2]
[392788990,1761951033420,-500.0,0.00014991,2]
[392788991,1761951033430,-162.41354311,0.00014991,2]
[392788992,1761951033441,-514.84070869,0.00014991,2]
[392788993,1761951033451,-208.8807234,0.00014991,2]
[392788994,1761951033461,-500.0,0.00014991,2]
[392788995,1761951033471,-500.0,0.00014991,2]
[392788996,1761951033482,-200.0,0.00014991,2]
[392788997,1761951033491,-500.0,0.00014991,2]
[392788998,1761951033500,-500.0,0.00014991,2]
[392788999,1761951033510,-500.0,0.00014991,2]
[392789000,1761951033519,-573.21060322,0.00014991,2]
[392789001,1761951033529,-151.0,0.00014991,2]
[392789002,1761951033538,-151.0,0.00014991,2]
[392789003,1761951033548,-151.0,0.00014991,2]
[392789004,1761951033557,-151.0,0.00014991,2]
[392789005,1761951033567,-151.0,0.00014991,2]
[392789006,1761951033576,-151.0,0.00014991,2]
[392789007,1761951033587,-151.0,0.00014991,2]
[392789008,1761951033597,-151.0,0.00014991,2]
[392789009,1761951033608,-151.0,0.00014991,2]
[392789010,1761951033619,-151.0,0.00014991,2]
[392789011,1761951033628,-151.0,0.00014991,2]
[392789012,1761951033638,-151.0,0.00014991,2]
[392789013,1761951033649,-151.0,0.00014991,2]
[392789014,1761951033661,-151.0,0.00014991,2]
[392789015,1761951033671,-151.0,0.00014991,2]
[392789016,1761951033684,-500.0,0.00014991,2]
[392789017,1761951033694,-500.0,0.00014991,2]
[392789018,1761951033703,-500.0,0.00014991,2]
[392789019,1761951033712,-500.0,0.00014991,2]
[392789020,1761951033723,-500.0,0.00014991,2]
[392789021,1761951033734,-500.0,0.00014991,2]
[392789022,1761951033745,-500.0,0.00014991,2]
[392789023,1761951033755,-500.0,0.00014991,2]
[392789024,1761951033764,-500.0,0.00014991,2]
[392789025,1761951033774,-500.0,0.00014991,2]
[392789026,1761951033783,-500.0,0.00014991,2]
[392789027,1761951033792,-500.0,0.00014991,2]
[392789028,1761951033803,-500.0,0.00014991,2]
[392789029,1761951033814,-500.0,0.00014991,2]
[392789030,1761951033824,-27402.15679453,0.00014993,2]
[392789031,1761951033837,-8897.67692077,0.00014993,2]
[392789032,1761951033848,-151.0,0.00014997,2]
[392789033,1761951033858,-188.28140626,0.00014997,2]
[392789034,1761951033868,-151.50598002,0.00014997,2]
[392789035,1761951033878,-500.0,0.00014997,2]
[392789036,1761951033887,-500.0,0.00014997,2]
[392789037,1761951033897,-500.0,0.00014997,2]
[392789038,1761951033906,-500.0,0.00014997,2]
[392789039,1761951033916,-500.0,0.00014997,2]
[392789040,1761951033925,-500.0,0.00014997,2]
[392789041,1761951033936,-500.0,0.00014997,2]
[392789042,1761951033946,-500.0,0.00014997,2]
[392789043,1761951033956,-500.0,0.00014997,2]
[392789044,1761951033965,-500.0,0.00014997,2]
[392789045,1761951033978,-500.0,0.00014997,2]
[392789046,1761951033987,-1000.0,0.00014998,2]
[392789047,1761951033997,-155.7711053,0.00014998,2]
[392789048,1761951034006,-4833.2231521,0.00014999,2]
[392789049,1761951034015,-1000.0,0.00014999,2]
[392789050,1761951034024,-208.94875002,0.00014999,2]
[392789051,1761951034036,-291.05124998,0.00014999,2]
[392789052,1761951034046,-500.0,0.00014999,2]
[392789053,1761951034057,-500.0,0.00014999,2]
[392789054,1761951034067,-2768.0,0.00015,2]
[392789055,1761951034076,-22491.2948443,0.00015,2]
[392789056,1761951034088,-96601.40953547,0.00015,2]
[392789057,1761951035682,500.0,0.00030136,120]
[392789058,1761951036293,513.18800653,0.00030136,120]
[392789059,1761951036553,807.84,0.00030136,120]
[392789060,1761951037194,732.55,0.00030136,120]
[392789067,1761951038078,-500.0,0.00014997,2]
[392789068,1761951038087,-44.38170658,0.00014997,2]
[392789069,1761951038296,-455.61829342,0.00014997,2]
[392789070,1761951038305,-234.72402335,0.00014997,2]
[392789071,1761951038317,-265.27597665,0.00014997,2]
[392789072,1761951038326,-500.0,0.00014997,2]
[392789073,1761951038336,-500.0,0.00014997,2]
[392789074,1761951038346,-500.0,0.00014997,2]
[392789075,1761951038355,-500.0,0.00014997,2]
[392789076,1761951038364,-500.0,0.00014997,2]
[392789077,1761951038373,-500.0,0.00014997,2]
[392789078,1761951038382,-500.0,0.00014997,2]
[392789080,1761951038392,-500.0,0.00014997,2]
[392789082,1761951038401,-500.0,0.00014997,2]
[392789084,1761951038411,-500.0,0.00014997,2]
[392789086,1761951038420,-500.0,0.00014997,2]
[392789088,1761951038429,-500.0,0.00014997,2]
[392789090,1761951038439,-500.0,0.00014997,2]
[392789092,1761951038448,-500.0,0.00014997,2]
[392789094,1761951038458,-500.0,0.00014997,2]
[392789096,1761951038467,-500.0,0.00014997,2]
[392789098,1761951038476,-500.0,0.00014997,2]
[392789100,1761951038486,-500.0,0.00014997,2]
[392789102,1761951038495,-500.0,0.00014997,2]
[392789103,1761951038505,-500.0,0.00014997,2]
[392789105,1761951038515,-500.0,0.00014997,2]
[392789107,1761951038524,-254.81654893,0.00014997,2]
[392789109,1761951038533,-500.0,0.00014997,2]
[392789111,1761951038543,-500.0,0.00014997,2]
[392789113,1761951038552,-500.0,0.00014997,2]
[392789115,1761951038562,-500.0,0.00014997,2]
[392789117,1761951038571,-500.0,0.00014997,2]
[392789119,1761951038581,-500.0,0.00014997,2]
[392789121,1761951038591,-487.98141822,0.00014997,2]
[392789124,1761951038608,-12.01858178,0.00014997,2]
[392789126,1761951038616,-500.0,0.00014997,2]
[392789128,1761951038626,-500.0,0.00014997,2]
[392789130,1761951038637,-500.0,0.00014997,2]
[392789132,1761951038647,-2744122.48718806,0.00015,2]
[392789134,1761951038657,-2027.73488218,0.00015,2]
[392789136,1761951038667,-7893.81958783,0.00015,2]
[392789138,1761951038676,-3195892.61208704,0.00015,2]
[392789141,1761951038690,-2347.62018372,0.00015,2]
[392789143,1761951038702,-378.63895266,0.00015,2]
[392789145,1761951038713,-1619.74221124,0.00015,2]
[392789147,1761951038724,-370.53,0.00015,2]
[392789149,1761951038735,-804.88808917,0.00015,2]
[392789155,1761951038788,500.0,0.00030136,120]
[392789157,1761951039436,500.0,0.00030136,120]
[392789158,1761951039496,500.0,0.00030136,120]
[392789159,1761951039713,500.0,0.00030136,120]
[392789161,1761951040313,-625.9019855,0.00015,2]
[392789169,1761951043084,500.0,0.00030136,120]
[392789173,1761951046178,-39533.451785,0.00015,2]
[392789174,1761951046365,-4709.10770279,0.00015,2]
[392789177,1761951047942,500.0,0.00030136,120]
[392789178,1761951049399,500.0,0.00030136,120]
[392789179,1761951050003,500.0,0.00030136,120]
[392789180,1761951050528,500.0,0.00030136,120]
[392789181,1761951053339,500.0,0.00030136,120]
[392789182,1761951053921,500.0,0.00030136,120]
[392789183,1761951054137,500.0,0.00030136,120]
[392789184,1761951054355,500.0,0.00030136,120]
[392789185,1761951055564,500.0,0.00030136,120]
[392789186,1761951056842,307.9881718,0.00030136,120]
[392789187,1761951056896,500.0,0.00030136,120]
[392789188,1761951057004,500.0,0.00030136,120]
[392789189,1761951058207,5811.23,0.00030136,120]
[392789190,1761951058708,500.0,0.00030136,120]
[392789191,1761951061462,500.0,0.00030136,120]
[392789192,1761951062535,500.0,0.00030136,120]
[392789193,1761951062864,500.0,0.00030136,120]
[392789194,1761951063272,178.86902332,0.00030136,120]
[392789195,1761951065457,500.0,0.00030136,120]
[392789196,1761951066124,500.0,0.00030136,120]
[392789197,1761951068628,500.0,0.00030136,120]
[392789198,1761951072553,545.63,0.00030136,120]
[392789199,1761951075720,500.0,0.00030136,120]
[392789200,1761951080262,500.0,0.00030136,120]
[392789201,1761951083722,558.37,0.00030136,120]
[392789202,1761951085124,500.0,0.00030136,120]
[392789203,1761951085484,518.63387951,0.00030136,120]
[392789204,1761951093358,500.0,0.00030136,120]
[392789205,1761951094784,500.0,0.00030136,120]
[392789206,1761951097421,500.0,0.00030136,120]
[392789207,1761951097575,539.44,0.00030136,120]
[392789208,1761951099670,500.0,0.00030136,120]
[392789209,1761951099872,500.0,0.00030136,120]
[392789210,1761951101258,500.0,0.00030136,120]
[392789211,1761951101322,500.0,0.00030136,120]
[392789212,1761951105461,491.43473346,0.00030136,120]
[392789213,1761951105513,500.0,0.00030136,120]
[392789214,1761951107439,500.0,0.00030136,120]
[392789215,1761951109360,500.0,0.00030136,120]
[392789216,1761951110509,381.74777728,0.00030136,120]
[392789217,1761951113340,500.0,0.00030136,120]
[392789218,1761951114863,500.0,0.00030136,120]
[392789219,1761951117580,500.0,0.00030136,120]
[392789220,1761951118522,500.0,0.00030136,120]
[392789221,1761951118827,500.0,0.00030136,120]
[392789222,1761951120389,500.0,0.00030136,120]
[392789223,1761951121815,500.0,0.00030136,120]
[392789224,1761951123144,500.0,0.00030136,120]
[392789225,1761951124285,620.79892245,0.00030136,120]
[392789226,1761951124888,271.17222154,0.00030136,120]
[392789227,1761951127815,500.0,0.00030136,120]
[392789228,1761951129589,500.0,0.00030136,120]
[392789229,1761951131472,566.32,0.00030136,120]
[392789230,1761951132148,564.50137378,0.00030136,120]
[392789231,1761951134272,500.0,0.00030136,120]
[392789232,1761951139546,552.24278749,0.00030136,120]
[392789233,1761951140547,500.0,0.00030136,120]
[392789234,1761951142018,500.0,0.00030136,120]
[392789235,1761951144500,1040.66,0.00030136,120]
[392789236,1761951144705,500.0,0.00030136,120]
[392789237,1761951145724,500.0,0.00030136,120]
[392789238,1761951150652,449.6655957,0.00030136,120]
[392789239,1761951150822,500.0,0.00030136,120]
[392789240,1761951151559,500.0,0.00030136,120]
[392789241,1761951152484,500.0,0.00030136,120]
[392789242,1761951154626,677.2,0.00030136,120]
[392789243,1761951154857,2402.49,0.00030136,120]
[392789244,1761951154920,500.0,0.00030136,120]
[392789245,1761951155461,740.0,0.0003,120]
[392789246,1761951155995,500.0,0.00030136,120]
[392789247,1761951156577,500.0,0.00030136,120]
[392789248,1761951161106,500.0,0.00030136,120]
[392789249,1761951161180,500.0,0.00030136,120]
[392789250,1761951162587,500.0,0.00030136,120]
[392789251,1761951164264,500.0,0.00030136,120]
[392789252,1761951165143,500.0,0.00030136,120]
[392789253,1761951166489,500.0,0.00030136,120]
[392789254,1761951167820,500.0,0.00030136,120]
[392789255,1761951168343,500.0,0.00030136,120]
[392789256,1761951171346,500.0,0.00030136,120]
[392789257,1761951175846,500.0,0.00030136,120]
[392789258,1761951175944,500.0,0.00030136,120]
[392789259,1761951179264,500.0,0.00030136,120]
[392789260,1761951179313,500.0,0.00030136,120]
[392789261,1761951179830,530.35715786,0.00030136,120]
[392789262,1761951180065,500.0,0.00030136,120]
[392789263,1761951180649,500.0,0.00030136,120]
[392789264,1761951181676,500.0,0.00030136,120]
[392789265,1761951181943,500.0,0.00030136,120]
[392789266,1761951183001,602.53708019,0.00030136,120]
[392789267,1761951183055,500.0,0.00030136,120]
[392789268,1761951183220,500.0,0.00030136,120]
[392789269,1761951183918,500.0,0.00030136,120]
[392789270,1761951184657,521.16109113,0.00030136,120]
[392789271,1761951186397,500.0,0.00030136,120]
[392789272,1761951187635,500.0,0.00030136,120]
[392789273,1761951187850,500.0,0.00030136,120]
[392789274,1761951188897,500.0,0.00030136,120]
[392789275,1761951190547,500.0,0.00030136,120]
[392789276,1761951190651,500.0,0.00030136,120]
[392789277,1761951190841,500.0,0.00030136,120]
[392789278,1761951191474,500.0,0.00030136,120]
[392789279,1761951191667,500.0,0.00030136,120]
[392789280,1761951193363,500.0,0.00030136,120]
[392789281,1761951193421,511.29,0.00030136,120]
[392789282,1761951194657,500.0,0.00030136,120]
[392789283,1761951195711,500.0,0.00030136,120]
[392789284,1761951196618,917.5,0.00030136,120]
[392789285,1761951197115,510.89787583,0.00030136,120]
[392789286,1761951199295,500.0,0.00030136,120]
[392789287,1761951200747,500.0,0.00030136,120]
[392789288,1761951202846,577.11,0.00030136,120]
[392789289,1761951203175,500.0,0.00030136,120]
[392789290,1761951203241,459.84610132,0.00030136,120]
[392789291,1761951203923,500.0,0.00030136,120]
[392789292,1761951207157,500.0,0.00030136,120]
[392789293,1761951207209,500.0,0.00030136,120]
[392789294,1761951210544,500.0,0.00030136,120]
[392789295,1761951210619,582.12,0.00030136,120]
[392789296,1761951211502,635.64012311,0.00030136,120]
[392789297,1761951212869,500.0,0.00030136,120]
[392789298,1761951213636,500.0,0.00030136,120]
[392789299,1761951214238,500.0,0.00030136,120]
[392789300,1761951214953,500.0,0.00030136,120]
[392789301,1761951217356,500.0,0.00030136,120]
[392789302,1761951219212,564.86,0.00030136,120]
[392789303,1761951219874,500.0,0.00030136,120]
[392789304,1761951220672,500.0,0.00030136,120]
[392789305,1761951221032,500.0,0.00030136,120]
[392789306,1761951222167,500.0,0.00030136,120]
[392789307,1761951223664,500.0,0.00030136,120]
[392789308,1761951225259,218.09166954,0.00030136,120]
[392789309,1761951225317,500.0,0.00030136,120]
[392789310,1761951227597,513.60873491,0.00030136,120]
[392789311,1761951227955,500.0,0.00030136,120]
[392789312,1761951228364,500.0,0.00030136,120]
[392789313,1761951229821,721.56,0.00030136,120]
[392789314,1761951230291,500.0,0.00030136,120]
[392789315,1761951230855,500.0,0.00030136,120]
[392789316,1761951230970,500.0,0.00030136,120]
[392789317,1761951231840,500.0,0.00030136,120]
[392789318,1761951233857,500.0,0.00030136,120]
[392789319,1761951234548,500.0,0.00030136,120]
[392789320,1761951236796,812.1,0.00030136,120]
[392789321,1761951237439,500.0,0.00030136,120]
[392789322,1761951239605,500.0,0.00030136,120]
[392789323,1761951240414,500.0,0.00030136,120]
[392789324,1761951240502,341.07,0.00030136,120]
[392789325,1761951241372,500.0,0.00030136,120]
[392789326,1761951242574,500.0,0.00030136,120]
[392789327,1761951242767,500.0,0.00030136,120]
[392789328,1761951243017,1018.87,0.00030136,120]
[392789329,1761951247704,500.0,0.00030136,120]
[392789330,1761951248581,753.2,0.00030136,120]
[392789331,1761951250809,500.0,0.00030136,120]
[392789332,1761951250882,500.0,0.00030136,120]
[392789333,1761951251123,500.0,0.00030136,120]
[392789334,1761951252040,500.0,0.00030136,120]
[392789335,1761951252893,704.35,0.00030136,120]
[392789336,1761951252974,500.0,0.00030136,120]
[392789337,1761951254566,500.0,0.00030136,120]
[392789338,1761951255468,259.99026331,0.00030136,120]
[392789339,1761951255589,199.46419579,0.00030136,120]
[392789340,1761951256194,500.0,0.00030136,120]
[392789341,1761951257678,507.3,0.00030136,120]
[392789342,1761951260152,500.0,0.00030136,120]
[392789343,1761951260651,1062.77,0.00030136,120]
[392789344,1761951261603,500.0,0.00030136,120]
[392789345,1761951261928,500.0,0.00030136,120]
[392789346,1761951264259,849.6,0.00030136,120]
[392789347,1761951264702,500.0,0.00030136,120]
[392789348,1761951264844,500.0,0.00030136,120]
[392789349,1761951265968,500.0,0.00030136,120]
[392789350,1761951268211,303.88130466,0.00030136,120]
[392789351,1761951268630,786.46,0.00030136,120]
[392789352,1761951268683,500.0,0.00030136,120]
[392789353,1761951269004,500.0,0.00030136,120]
[392789354,1761951271951,500.0,0.00030136,120]
[392789355,1761951272509,500.0,0.00030136,120]
[392789356,1761951272593,500.0,0.00030136,120]
[392789357,1761951276914,500.0,0.00030136,120]
[392789358,1761951276971,500.0,0.00030136,120]
[392789359,1761951279228,810.28,0.00030136,120]
[392789360,1761951279280,687.27,0.00030136,120]
[392789361,1761951280764,500.0,0.00030136,120]
[392789362,1761951282054,500.0,0.00030136,120]
[392789363,1761951282367,500.0,0.00030136,120]
[392789364,1761951283880,500.0,0.00030136,120]
[392789365,1761951285086,611.65,0.00030136,120]
[392789366,1761951287289,155.52452975,0.00030136,120]
[392789367,1761951288845,500.0,0.00030136,120]
[392789368,1761951289001,500.0,0.00030136,120]
[392789369,1761951289868,5569.1,0.00030136,120]
[392789375,1761951290765,500.0,0.00030136,120]
[392789376,1761951290854,500.0,0.00030136,120]
[392789377,1761951293577,500.0,0.00030136,120]
[392789378,1761951294828,259.78051939,0.00030136,120]
[392789379,1761951296410,500.0,0.00030136,120]
[392789380,1761951298875,500.0,0.00030136,120]
[392789381,1761951299772,544.85,0.00030136,120]
[392789382,1761951301325,683.1,0.00030136,120]
[392789383,1761951303810,500.0,0.00030136,120]
[392789384,1761951305141,500.0,0.00030136,120]
[392789385,1761951305433,500.0,0.00030136,120]
[392789386,1761951309377,500.0,0.00030136,120]
[392789387,1761951309449,500.0,0.00030136,120]
[392789388,1761951309864,667.19,0.00030136,120]
[392789389,1761951310185,500.0,0.00030136,120]
[392789390,1761951314347,500.0,0.00030136,120]
[392789391,1761951314832,500.0,0.00030136,120]
[392789392,1761951315591,512.02378288,0.00030136,120]
[392789394,1761951317304,621.83,0.00030136,120]
[392789395,1761951318643,535.1,0.00030136,120]
[392789396,1761951319057,500.0,0.00030136,120]
[392789397,1761951319286,282.26140547,0.00030136,120]
[392789398,1761951319976,500.0,0.00030136,120]
[392789399,1761951326038,500.0,0.00030136,120]
[392789400,1761951326855,500.0,0.00030136,120]
[392789401,1761951331410,500.0,0.00030136,120]
[392789402,1761951331559,500.0,0.00030136,120]
[392789403,1761951333688,500.0,0.00030136,120]
[392789405,1761951338621,604.53,0.00030136,120]
[392789406,1761951339363,500.0,0.00030136,120]
[392789407,1761951341869,500.0,0.00030136,120]
[392789408,1761951342564,500.0,0.00030136,120]
[392789409,1761951343725,500.0,0.00030136,120]